Workbook

Sheet Salary CTC
A1: CTC (Cost to Company annum) | B1: 750000 | C1: Please note that the excel file is made for educational purpose. Users are not adviced to take any decision based on this file. Consult a professional as tax impact and treatment differes from situation to situation. | M1: Select Your City
M2: Metro
M3: Non-Metro
A4: Particulars | B4: Amount (Monthly) | C4: Taxable(Monthly) | D4: Amount (Annual) | E4: Taxable(Annual)
A5: Basic Salary | B5: =(B1/12)*50% -> 31250 | C5: =B5 -> 31250 | D5: =B5*12 -> 375000 | E5: =C5*12 -> 375000
A6: Dearness Allowance | B6: =B5*41% -> 12812.5 | C6: =B6 -> 12812.5 | D6: =B6*12 -> 153750 | E6: =C6*12 -> 153750 | I6: House Rent Allowance (HRA)
A7: Alowances: | D7: 0 | E7: 0
A8: House Rent Allowances | B8: 9641.7 | D8: 115700.4 | E8: 0 | I8: Discription | J8: Amount
A9: Less: Exempted | B9: =-'Salary CTC'!J13 -> -8093.75 | C9: =SUM(B8:B9) -> 1547.95 | E9: 18575.4 | I9: HRA | J9: ='Salary CTC'!B8 -> 9641.7
A10: Conveyance Allowance | B10: 800 | C10: 0 | D10: =B10*12 -> 9600 | E10: 0 | I10: Actual Rent | J10: 12500
A11: Children Education Allowance | B11: 200 | C11: 0 | D11: 2400 | E11: 0 | I11: Rent in excess of 10% of Salary | J11: =J10-(SUM('Salary CTC'!$C$5:$C$6)*10%) -> 8093.75
A12: Hostel Expenditure | B12: 600 | C12: 0 | D12: 7200 | E12: 0 | I12: Metro | J12: =IF($I$12="Metro",SUM('Salary CTC'!$C$5:$C$6)*50%,SUM('Salary CTC'!$C$5:$C$6)*40%) -> 22031.25
A13: Medical reimbursement | B13: 1250 | C13: 0 | D13: 15000 | E13: 0 | I13: Exempted HRA | J13: =MIN(J9,J11,J12) -> 8093.75
A15: Total | B15: =SUM(B5:B13) -> 48460.45 | C15: =SUM(C5:C14) -> 45610.45 | D15: =SUM(D5:D13) -> 678650.4 | E15: 547325.4
A16: Less: Profession Tax | B16: -200 | C16: -200 | D16: =B16*12 -> -2400 | E16: =C16*12 -> -2400
A17: Net Salary | B17: =SUM(B15:B16) -> 48260.45 | C17: 45410.45 | D17: =SUM(D15:D16) -> 676250.4 | E17: =SUM(E15:E16) -> 544925.4
A19: Tax | B19: =B17*20% -> 9652.09 | C19: =C17*20% -> 9082.09 | D19: 135250.08 | E19: 108985.08
B22: 1. Please note that all allowances are explained in the article from where this file is originaly downloaded.
B23: 2. Please seek the professional help before coming to any decision.
B24: 3. The tax rate is not as specified under income tax act and is taken only to compare the tax impact.
B25: 4. The above work is under no circumstances guaranteed to provide optimum structure as every individual operates in a different enviroment attracting different rules under which salary can be structured.

Sheet Allowances
A3: Allowances Calculation
